Cogmind - Beta 17 @@@ ROGUE MODE // 2026.08.22 @ 17:05:24 Player: Conwew Result: Destroyed by W0-POT(R) with Subdweller Machine Gun Performance ------------- Evolutions (0) 0 Regions Visited (2) 400 Robots Destroyed (23) 115 Value Destroyed (487) 487 Prototype IDs (0) 0 Alien Tech Used (0) 0 Bonus (0) 0 TOTAL SCORE: 1002 Bonus ------- None Cogmind --------- Core Integrity 0/250 Matter 285/300 Energy 111/125 System Corruption 1% Temperature Cool (0) Movement Rolling (110) Ox2 Location -10/Subcaves Parts ------- > --- POWER (1) -------- Light Ion Engine > --- PROPULSION (2) --- Wheel Wheel > --- UTILITY (2) ------ High-capacity Storage Unit Weapon Shielding > --- WEAPON (2) ------- EM Pulse Gun EM Pulse Gun > --- INVENTORY (20) --- Wheel Heat Sink EM Pulse Gun EM Pulse Gun Heavy EM Pulse Gun Heavy EM Pulse Gun Medium Laser Medium Laser Peak State ------------ > --- POWER ------------ Light Ion Engine > --- PROPULSION ------- Wheel Wheel > --- UTILITY ---------- Heat Sink High-capacity Storage Unit > --- WEAPON ----------- Heavy EM Pulse Gun Heavy EM Pulse Gun > --- INVENTORY -------- Wheel Wheel Wheel Heat Sink Weapon Shielding EM Pulse Gun EM Pulse Gun EM Pulse Gun EM Pulse Gun EM Pulse Gun Heavy EM Pulse Gun Heavy EM Pulse Gun Medium Laser Medium Laser Assault Rifle [Rating: 10] Favorites ----------- Power Light Ion Engine Engine Light Ion Engine Propulsion Wheel Wheel Wheel Utility High-capacity Storage Unit Device Heat Sink Storage High-capacity Storage Unit Protection Weapon Shielding Weapon Assault Rifle Energy Gun EM Pulse Gun Ballistic Gun Assault Rifle Build | -11 -10 -10 ------- Run | Yrd Mat Sub Slots Evolved . | . . . Power . | . . . Propulsion . | . . . Utility . | . . . Weapon . | . . . Parts Attached 19 | 4 7 8 Power 1 | . 1 . Engine 1 | . 1 . Core . | . . . Reactor . | . . . Propulsion 7 | 2 2 3 Treads . | . . . Leg . | . . . Wheel 7 | 2 2 3 Hover . | . . . Flight . | . . . Utility 3 | . 3 . Device 1 | . 1 . Storage 1 | . 1 . Processor . | . . . Hackware . | . . . Protection 1 | . 1 . Artifact . | . . . Weapon 8 | 2 1 5 Energy Gun 6 | . 1 5 Energy Cannon . | . . . Ballistic Gun 2 | 2 . . Ballistic Cannon . | . . . Launcher . | . . . Special Weapon . | . . . Impact Weapon . | . . . Slashing Weapon . | . . . Piercing Weapon . | . . . Special Melee Weapon . | . . . Unidentified Prototypes . | . . . Parts Lost 10 | . 2 8 Power . | . . . Propulsion 5 | . 2 3 Utility 1 | . . 1 Weapon 4 | . . 4 Highest Loss Streak 6 | . 1 6 To Critical Strikes . | . . . Average Backups 7 | . 5 10 Power . | . . . Propulsion 1 | . 1 2 Utility 1 | . 1 1 Weapon 4 | . 2 6 Tool/Special . | . . . Unused Backups 7 | . . 7 Power . | . . . Propulsion 1 | . . 1 Utility 1 | . . 1 Weapon 5 | . . 5 Tool/Special . | . . . Average Slot Usage (%) 88 | . 83 95 Engine 11 | . 9 14 Wheel 24 | . 24 25 Device 8 | . 13 1 Storage 8 | . 4 14 Protection 5 | . 2 11 Energy Gun 13 | . 4 27 Ballistic Gun 14 | . 23 . Peak Build Rating 10 | 4 8 10 Average Rating 6 | 3 6 7 On Entrance 4 | . 4 8 Avg Prop Armor Cover (%) . | . . . Naked Turns . | . . . Heaviest Build 50 | 4 48 50 Greatest Support 26 | 26 26 20 Greatest Overweight (x) 4 | . 4 4 Average Overweight (x) 1 | . . 2 Largest Inventory Capacity 20 | 5 20 20 Average Capacity 13 | 5 10 20 Most Carried 15 | 1 15 15 Average Carried 7 | . 5 10 Final Capacity 20 | 5 20 20 Final Carried 15 | 1 15 8 Class Distribution -------------------- 100% | Mutant Dominant Class ---------------- Mutant | -10/Materials Mutant | -10/Subcaves Resources | -11 -10 -10 ----------- Run | Yrd Mat Sub Matter Collected 565 | 209 286 70 Remotely . | . . . Salvage Created 757 | . 439 318 Parts 42 | . 28 14 Haulers Intercepted . | . . . Recyclers Shooed . | . . . Parts Field Recycled . | . . . Retrieved Matter . | . . . Parts Self-Destructed 9 | . . 9 Prevented 1 | . . 1 Parts Restored . | . . . Kills | -11 -10 -10 ------- Run | Yrd Mat Sub Combat Hostiles Destroyed 18 | . 12 6 Guns 16 | . 12 4 AOE 1 | . . 1 Classes Destroyed 6 | . 5 1 Worker 1 | . 1 . Recycler 1 | . 1 . Watcher 3 | . 3 . Swarmer 9 | . 9 . Grunt 3 | . 3 . Subdweller 6 | . . 6 Best Kill Streak 7 | . 7 2 Combat Bots Only 6 | . 6 2 Max Kills in Single Turn 2 | . 2 1 Gunslinging 1 | . 1 . Exploded 1 | . . 1 Melee . | . . . Uniques/NPCs Destroyed . | . . . Combat | -11 -10 -10 -------- Run | Yrd Mat Sub Hostile Shots Fired 97 | . 50 47 Missed 29 | . 14 15 Hits 68 | . 36 32 Projectile 68 | . 36 32 Critical Strikes 1 | . 1 . Damage Taken 992 | . 323 669 Core 257 | . 65 192 Absorbed by Shields . | . . . Redirected to Shielding 6 | . . 6 Core Remaining (%) 100 | 100 . . Volleys Fired 67 | . 37 30 Largest 2 | . 2 2 Hottest 90 | . 70 90 Shots Fired 134 | . 75 59 Gun 134 | . 75 59 Cannon . | . . . Launcher . | . . . Special . | . . . Kinetic 69 | . 65 4 Thermal 10 | . 10 . Explosive . | . . . Electromagnetic 55 | . . 55 Robot Hit Streak 16 | . 5 16 Robot Miss Streak 3 | . 3 2 Penetration Max . | . . . Secondary Targets 2 | . 1 1 Max Gunslinging Chain 1 | . 1 1 Shots Hit Robots 88 | . 38 50 Core Hits 34 | . 20 14 Critical Kills . | . . . Critical Parts Destroyed . | . . . Critical Strikes 1 | . 1 . Burn 1 | . 1 . Melee Attacks . | . . . Impact . | . . . Slashing . | . . . Piercing . | . . . Sneak Attacks . | . . . Combat Hostiles . | . . . Follow-up Attacks . | . . . Damage Inflicted 1142 | . 515 627 Guns 1022 | . 515 507 Cannons . | . . . Explosions 120 | . . 120 Melee . | . . . Ramming . | . . . Kinetic 467 | . 453 14 Thermal 182 | . 62 120 Explosive . | . . . Electromagnetic 493 | . . 493 Impact . | . . . Slashing . | . . . Piercing . | . . . Highest Corruption 1 | . 1 1 Average Corruption 1 | . 1 1 Corruption Purged . | . . . Corruption Blocked . | . . . Effects 8 | . 3 5 Message Errors 2 | . 1 1 Matter Fused 1 | . . 1 Energy Discharges 2 | . 1 1 Data Loss (minor) 1 | . . 1 Misfires 1 | . 1 . Weapon Failures 1 | . . 1 Overload Shots . | . . . Overflow Damage . | . . . Projectiles . | . . . Explosions . | . . . Melee . | . . . Knockbacks . | . . . Impact . | . . . Kinetic . | . . . Secondary . | . . . Self-Inflicted Damage 20 | . . 20 Shots 1 | . . 1 Rammed . | . . . Targets Rammed . | . . . Kicked . | . . . Crushed . | . . . Highest Temperature . | . . . Average Temperature . | . . . Received Heat Transfer 135 | . 54 81 Siege Activations . | . . . Martial Activations . | . . . Shielding Activations . | . . . Robots Disrupted . | . . . Combat Hostiles . | . . . Robots Corrupted 1 | . . 1 Combat Hostiles 1 | . . 1 Parts Fried 5 | . . 5 Impact Corruptions . | . . . Robots Melted . | . . . Combat Hostiles . | . . . Parts Melted . | . . . Heat Transferred 359 | . 259 100 Parts Sabotaged . | . . . Parts Stolen . | . . . Parts Stripped . | . . . Power Chain Reactions 2 | . . 2 Alert | -11 -10 -10 ------- Run | Yrd Mat Sub Maximum Alert Level . | . . . Low Security (%) 100 | 100 100 . Level 1 . | . . . Level 2 . | . . . Level 3 . | . . . Level 4 . | . . . Level 5 . | . . . High Security . | . . . Max Security . | . . . Peak Influence 169 | . 169 . Initial . | . . . Average 66 | . 70 . Influence Increases 316 | . 316 . Destroy 0b10 Robot/C 240 | . 240 . Destroy 0b10 Robot/NC 25 | . 25 . Destroy Leader 36 | . 36 . Lose Combat Pursuer 15 | . 15 . Influence Decreases 316 | . 296 20 Entered New Map 10 | . . 10 Time Decay 276 | . 276 . Lost Part 30 | . 20 10 Squads Dispatched . | . . . Investigation . | . . . Extermination . | . . . Reinforcement . | . . . Assault . | . . . Garrison . | . . . Intercept . | . . . Searches Triggered . | . . . Construction Impeded . | . . . Haulers Reinforced . | . . . Active Scanning Responses . | . . . Cargo Convoy Interrupts . | . . . Stealth | -11 -10 -10 --------- Run | Yrd Mat Sub Distress Signals . | . . . Communications Jammed . | . . . Distress Signals . | . . . Times Spotted 27 | . 18 9 Peak Tracking Total 3 | . 3 3 Tactical Retreats 1 | . 1 . Traps | -11 -10 -10 ------- Run | Yrd Mat Sub Traps Triggered 1 | . 1 . Indirectly . | . . . Trap Hack Attempts . | . . . Triggered . | . . . Disarmed 3 | . 3 . Reprogrammed . | . . . Reused . | . . . Traps Extracted . | . . . Installed . | . . . Triggered . | . . . Machines | -11 -10 -10 ---------- Run | Yrd Mat Sub Machines Disabled . | . . . Max in Single Turn . | . . . Machines Repaired . | . . . Machines Dismantled . | . . . Machines Sabotaged . | . . . Overloaded Fab Kills . | . . . Hacking | -11 -10 -10 --------- Run | Yrd Mat Sub Machines Accessed 2 | . 2 . Terminals 2 | . 2 . Fabricators . | . . . Repair Stations . | . . . Recycling Units . | . . . Scanalyzers . | . . . Garrison Access . | . . . Total Hacks 2 | . 2 . Successful 1 | . 1 . Failed 1 | . 1 . Catastrophic . | . . . Database Lockouts . | . . . Manual 2 | . 2 . Terminals 2 | . 2 . Fabricators . | . . . Repair Stations . | . . . Recycling Units . | . . . Scanalyzers . | . . . Garrison Access . | . . . Terminal Hacks 1 | . 1 . Disarm Traps 1 | . 1 . Fabricator Hacks . | . . . Repair Station Hacks . | . . . Recycling Unit Hacks . | . . . Scanalyzer . | . . . Garrison Access Hacks . | . . . Unauthorized Hacks . | . . . Terminals . | . . . Fabricators . | . . . Repair Stations . | . . . Recycling Units . | . . . Scanalyzers . | . . . Garrison Access . | . . . Data Cores Recovered . | . . . Used . | . . . Hacking Detections 2 | . 2 . Full Trace Events . | . . . Feedback Events . | . . . Feedback Blocked . | . . . Robot Schematics Acquired . | . . . Robots Built . | . . . Authchips . | . . . Time . | . . . Total Robot Build Rating . | . . . Part Schematics Acquired . | . . . Parts Built . | . . . Authchips . | . . . Time . | . . . Total Part Build Rating . | . . . Part Studies Acquired . | . . . Parts Repaired . | . . . Time . | . . . Parts Recycled . | . . . Recycled Matter . | . . . Retrieved Matter . | . . . Retrieved Components . | . . . Parts Scanalyzed . | . . . Part Schematics Acquired . | . . . Parts Damaged . | . . . Bothacking | -11 -10 -10 ------------ Run | Yrd Mat Sub Used RIF Installer . | . . . Robots Hacked . | . . . Non-combat . | . . . Combat . | . . . Robot Hacks Applied . | . . . Relay Couplers Released . | . . . Fabnet Peak Effective % . | . . . Robots Rewired . | . . . Allies Hacked . | . . . Hacks Repelled . | . . . Allies | -11 -10 -10 -------- Run | Yrd Mat Sub Total Allies . | . . . Largest Group . | . . . Highest-Rated Group . | . . . Highest-Rated Ally . | . . . Total Orders . | . . . Ally Attacks . | . . . Total Damage . | . . . Kills . | . . . Allies Corrupted . | . . . Allies Melted . | . . . Intel | -11 -10 -10 ------- Run | Yrd Mat Sub Active Infowar (turns) . | . . . Robot Analysis Total . | . . . Derelict Logs Recovered 1 | . . 1 Drone Launches . | . . . Drone Recoveries . | . . . Exploration | -11 -10 -10 ------------- Run | Yrd Mat Sub Turns Passed 1256 | 36 726 494 Spaces Moved 952 | 34 593 325 Core 1 | 1 . . Treads . | . . . Legs . | . . . Wheels 951 | 33 593 325 Hover . | . . . Flight . | . . . Fastest Speed 50 | 50 80 110 Average Speed 98 | 87 91 112 Slowest Speed 140 | 90 140 140 Overloaded Moves . | . . . Propulsion Burnouts . | . . . Robots Hopped . | . . . Potential Cave-ins . | . . . Cave-ins Triggered . | . . . Exploration Rate (%) 32 | 3 74 19 Regions Visited 2 Branch Regions 1 Pre-discovered Areas 1 | . . 1 Known Exits Taken . | . . . Unknown Exits Taken 2 | 1 1 . Scrap Searched . | . . . Spaces Dug . | . . . Terrain Destroyed 7 | . . 7 Melee . | . . . Projectile . | . . . AOE 7 | . . 7 Terrain Rammed . | . . . Walls Destroyed . | . . . Machines Disabled . | . . . Actions | -11 -10 -10 --------- Run | Yrd Mat Sub Total 1131 | 38 701 392 Wait 73 | . 47 26 Move 950 | 33 592 325 Hop . | . . . Pick Up 18 | 1 16 1 Fast Attach 9 | 4 5 . Attach 9 | . 1 8 Detach . | . . . Swap 3 | . 1 2 Drop 2 | . 2 . Fire 67 | . 37 30 Melee . | . . . Ram . | . . . Kick . | . . . Crush . | . . . Escape Stasis . | . . . Rewire . | . . . Trap . | . . . Miscellaneous . | . . . Route ------- -11/Scrapyard -10/Materials (discovered 4 exits: [*Mat x2] / [*Min] / [*Sub]) -10/Subcaves (discovered 1 exit: [*Mat]) History --------- Turn | Location | Event 8 | -11/Scrapyard | Discovered new exit (range 15) 37 | -11/Scrapyard | Entered Materials 224 | -10/Materials | Discovered new exit (range 13) 288 | -10/Materials | Discovered new exit (range 10) 300 | -10/Materials | Build established: Mutant 430 | -10/Materials | Discovered new exit (range 6) 757 | -10/Materials | Discovered new exit (range 7) 763 | -10/Materials | Entered Subcaves 764 | -10/Subcaves | Approached by a straggling Scientist 788 | -10/Subcaves | Core integrity fell below 50% 827 | -10/Subcaves | Discovered new exit (range 12) 857 | -10/Subcaves | Lost 6 parts (1n1u4w) 935 | -10/Subcaves | Core integrity fell below 20% 1046 | -10/Subcaves | Shifting Twisted Machinery released Flamer 1100 | -10/Subcaves | Shifting Twisted Machinery released Battle Cannon 1238 | -10/Subcaves | Learned location of Storage (-9) 1257 | -10/Subcaves | Destroyed by W0-POT(R) with Subdweller Machine Gun Last Messages --------------- Acquired 37 matter. 2 LHCJC09WKAA=%L&N|2IO|3QZOHJH8TFSS Subatomizers dissect the Machine Analyzer. XU-CGU(R) destroyed. 45-NYB(u) builds Twisted Machinery. Subatomizers dissect the Sub. Optics. Flamer falls loose from the Twisted Machinery. System corrupted: Matter fused (-8). H4-YAM(R) destroyed. Acquired 8 matter. Battle Cannon falls loose from the Twisted Machinery. System corrupted: Energy discharge (-32). A6-AXT(z): "She is not going to be happy we haven't found any suitable candidates yet." Wheel destroyed. Acquired derelict log, extracted data. World map updated: -9/Storage. Aluminum Leg fries itself beyond repair. W0-POT(R) misfires. Map ----- +----------------------------------------------------+ | | | | | | | | | | | | | ?????????????????????????????????????????????????? | | ?????????????????????????????????????????????????? | | ?????????????????????????????????????????????????? | | ?????????????????????????????????????????????????? | | ?????????????????????????????????????????????????? | | ?????????????????????????????????????????????????? | | ?????????????????????????????????????????????????? | | ?????????????????????????????????????????????????? | | ?????????????????????????????????????????????????? | | ?????????????????????????????????????????????????? | | ?????????????????????????????????????????????????? | | ?????????????????????????????????????????????????? | | ?????????????????????????????????????????????????? | | ?????????????????????????????????????????????????? | | ???????????????????????????###?#?????????????????? | | ???????????????###?????#### # #####?????????????? | | ??????????##???# #?#### #?????????????? | | ?????????## ??# ## # ?????????????"" | | ?????????# ???# $ #???????????????????"" | | ?????????# ??## R@##### ????????????????"" | | ?????????# ??##### ###? ?????????????????? | | ?????????# ?# #? ?????????????????? | | ?????????# ?# ## ??????????????????? | | ?????????# ## ##? #???????????????????? | | ????????????# #?? #????????????????????? | | ????????????# ### #????????????????????? | | ???????????## ### #????????""???####???? | | ?? ### [% ## ######???""#?## "#???? | | ????# [ #???#" ##" #???? | | ????????# #???#""""" ##### | | ????????## ## ## #???# # # | | ?????????# #?## ###?#? #???# |""" | | ?????????# ???# ### ##?## ?????# """" | | ????????? ????###?# ### ?###?# " "" ## | | ????????????????????# ### # ## ## | | ????????????????????## #??# ###""#? | | ?????????????????????# ##??# ##?##""# | | ?????????????????????# ##??# ## # ##??#""# | | ?????????????????????# #?????#?### #?? ## | | ???????????????????### #???####?# ##?? #? | | ??????????????????## ####### #?# ##??###? | | ?????????????????## #### # ####%& #?????? | | ????????????#???## ## # [ #?????? | | ???????????## ??# # !* #?????? | +----------------------------------------------------+ Best States ------------- Heat Dissipation 35 Energy Generation 10 Energy Capacity 125 Matter Stores 300 Matter Capacity 300 Sight Range 16 Terrain Scan Density 10 Weapon Shielding 33 Evasion (%) 44 Item Schematics ----------------- None Robot Schematics ------------------ None Fabricated ------------ Nothing Repaired ---------- Nothing Studied --------- None Alien Tech Used ----------------- None Achievements -------------- None Challenges ------------ None Game ------ Seed ScimitarAssemblyCharge Manual? 0 Play Time 00:14:12 Cumulative 81.3 hours Start 2026.08.22 @ 16:53:58 End 2026.08.22 @ 17:05:24 Sessions 1 Manual Loads 0 Difficulty Rogue Special Mode None Game No. 89 Rogue 89 Adventurer 0 Explorer 0 Win Type - Total 1 Types 1/0/0/0/0/0/0/0/0/0 Lore% 69 Gallery% 49 Achievement% 44 Wizard Run 0 Options --------- Layout 1 ASCII 0 Keyboard 0 Movement Mouse Keybinds 0 Fullscreen 1 Font 24/X11 Map View 50x35 Zoom Use 0% Tactical HUD 0 Map Filters NONE Filters NONE Steam 1 RUN: 2926f36a-82d4-48e9-a3f5-61f6eb229728